bitfinex-derivatives/quotes_SOLF0:USTF0_20241027
["timestamp","ask_amount","ask_price","bid_price","bid_amount"]
[1730017642897,2.8793,173.87,173.83,9.9590438]
[1730017643190,4.38,173.86,173.83,9.9590438]
[1730017643489,4.38,173.86,173.84,2.8797]
[1730017643692,4.38,173.86,173.83,7.0791438]
[1730017645092,7.2596,173.86,173.83,7.0791438]
[1730017645299,4.38,173.86,173.82,7.0791438]
[1730017645693,7.2595,173.86,173.82,7.0791438]
[1730017647099,2.8796,173.85,173.82,7.0791438]
[1730017647296,2.8796,173.85,173.8,2.8804]
[1730017647297,11.4591438,173.86,173.8,7.0791438]
[1730017647499,4.38,173.86,173.8,7.0791438]
[1730017648301,2.8799,173.84,173.8,9.9595438]
[1730017649613,7.2594,173.86,173.83,7.0791438]
[1730017649811,4.38,173.86,173.83,7.0791438]
[1730017651499,7.2595,173.86,173.82,2.8799]
[1730017651716,4.38,173.86,173.81,9.9593438]
[1730017652507,4.38,173.86,173.78,3.6144]
[1730017652704,4.38,173.86,173.81,7.0791438]
[1730017652705,11.4591438,173.86,173.81,7.0791438]
[1730017653596,4.38,173.86,173.82,7.0791438]
[1730017654413,7.2595,173.86,173.82,7.0791438]
[1730017655705,2.8795,173.86,173.82,7.0791438]
[1730017655908,4.38,173.85,173.82,9.9591438]
[1730017656111,4.38,173.85,173.84,7.0791438]
[1730017656407,4.38,173.85,173.83,7.0791438]
[1730017657604,4.38,173.85,173.82,9.9591438]
[1730017658606,2.88,173.83,173.78,2.8806]
[1730017658808,2.88,173.83,173.78,9.9597438]
[1730017659909,2.88,173.83,173.79,9.9597438]
[1730017663911,3.6753,173.87,173.79,7.0791438]
[1730017664113,2.8797,173.85,173.81,9.9593438]
[1730017664915,4.38,173.84,173.81,9.9593438]
[1730017665815,2.8801,173.83,173.78,2.8806]
[1730017666023,2.8801,173.83,173.78,7.0791438]
[1730017666418,11.4591438,173.84,173.71,3.6848]
[1730017666622,2.8804,173.8,173.77,7.0791438]
[1730017666922,7.2404,173.8,173.77,7.0791438]
[1730017667114,4.36,173.8,173.77,9.9599438]
[1730017667712,2.8807,173.79,173.74,2.8813]
[1730017667925,4.36,173.8,173.75,7.0791438]
[1730017669208,7.2405,173.8,173.76,7.0791438]
[1730017672427,7.2405,173.8,173.76,9.9601438]
[1730017673723,2.881,173.77,173.73,2.8814]
[1730017673924,4.36,173.76,173.73,9.9605438]
[1730017674129,4.36,173.76,173.73,7.0791438]
[1730017675326,4.36,173.76,173.74,2.8813]
[1730017676527,4.36,173.76,173.69,112.03111353]
[1730017676734,4.36,173.76,173.72,7.0791438]
[1730017678230,4.36,173.76,173.73,2.8815]
[1730017679428,4.36,173.76,173.74,7.0791438]
[1730017679626,4.36,173.76,173.74,9.9605438]
[1730017679938,4.36,173.76,173.74,7.0791438]
[1730017680130,4.36,173.76,173.75,2.8812]
[1730017682648,4.36,173.76,173.75,9.9603438]
[1730017684736,2.8805,173.8,173.76,2.881]
[1730017684942,4.36,173.77,173.76,2.881]
[1730017687542,4.36,173.77,173.75,2.8812]
[1730017688937,4.36,173.77,173.76,9.9602438]
[1730017691437,4.36,173.77,173.76,2.8811]
[1730017692038,4.36,173.77,173.76,9.9602438]
[1730017694942,2.8803,173.81,173.76,7.0791438]
[1730017695136,4.36,173.8,173.77,2.8808]
[1730017697141,2.8803,173.81,173.69,4.36]
[1730017697142,7.0791438,173.85,173.8,2.8804]
[1730017697346,4.3,173.84,173.8,2.8804]
[1730017697547,4.3,173.84,173.78,7.0791438]
[1730017698652,2.8799,173.83,173.79,2.8805]
[1730017700144,2.8796,173.86,173.82,2.88]
[1730017700342,4.3,173.85,173.82,2.88]
[1730017701243,4.3,173.84,173.82,2.8801]
[1730017705649,4.3,173.83,173.82,2.8801]
[1730017706448,4.3,173.83,173.81,2.8801]
[1730017707556,7.1799,173.83,173.8,7.0791438]
[1730017708063,4.3,173.83,173.81,2.8801]
[1730017709948,4.3,173.83,173.81,9.9592438]
[1730017712557,4.3,173.83,173.82,2.8801]
[1730017713260,7.0791438,173.89,173.83,2.8799]
[1730017713261,4.3,173.85,173.83,2.8799]
[1730017713557,4.3,173.85,173.83,9.9590438]
[1730017714552,4.3,173.85,173.83,2.8799]
[1730017714752,4.3,173.85,173.83,9.9590438]
[1730017716559,4.3,173.85,173.83,7.0791438]
[1730017716757,4.3,173.85,173.74,3.7131]
[1730017716962,4.3,173.85,173.8,7.0791438]
[1730017717158,2.8798,173.84,173.8,9.9594438]
[1730017719159,2.8798,173.84,173.81,7.0791438]
[1730017719866,4.3,173.84,173.83,9.9590438]
[1730017722961,55.96,173.91,173.83,7.0791438]
[1730017723162,4.3,173.9,173.89,7.0791438]
[1730017727171,4.24,173.92,173.89,7.0791438]
[1730017727368,4.24,173.93,173.9,7.0791438]
[1730017727975,4.24,173.93,173.91,2.8785]
[1730017729065,4.24,173.93,173.9,9.9578438]
[1730017729968,4.24,173.93,173.82,3.6841]
[1730017730270,2.8786,173.92,173.87,9.9583438]
[1730017730475,2.8786,173.92,173.87,7.0791438]
[1730017731168,2.8786,173.92,173.88,2.879]
[1730017731570,2.8786,173.92,173.82,3.6841]
[1730017731571,2.8788,173.9,173.86,7.0791438]
[1730017731875,4.24,173.89,173.86,7.0791438]
[1730017732467,4.24,173.89,173.86,2.8793]
[1730017734070,2.8792,173.88,173.84,9.9587438]
[1730017734263,4.24,173.89,173.84,7.0791438]
[1730017734965,7.1191,173.89,173.85,2.8796]
[1730017735165,4.24,173.89,173.77,4.24]
[1730017735374,4.24,173.89,173.84,7.0791438]
[1730017736062,7.0791438,173.88,173.77,6.7881]
[1730017736263,7.0791438,173.88,173.82,7.0791438]
[1730017736479,7.0791438,173.87,173.77,2.5481]
[1730017736663,2.8799,173.84,173.79,9.9595438]
[1730017736865,4.24,173.83,173.79,9.9595438]
[1730017738473,4.24,173.83,173.8,2.8803]
[1730017738676,4.24,173.83,173.8,9.9594438]
[1730017738975,4.24,173.83,173.8,7.0791438]
[1730017739177,4.24,173.83,173.81,2.8802]
[1730017739971,4.24,173.83,173.8,7.0791438]
[1730017740269,7.0791438,173.87,173.8,7.0791438]
[1730017740473,7.1194,173.86,173.82,7.0791438]
[1730017741378,7.1194,173.86,173.82,9.9592438]
[1730017741574,2.8794,173.86,173.82,9.9592438]
[1730017741778,4.24,173.85,173.82,9.9592438]
[1730017747479,2.8794,173.86,173.82,9.9592438]
[1730017747675,4.24,173.86,173.84,9.9587438]
[1730017748283,4.24,173.86,173.85,2.8796]
[1730017748986,4.24,173.86,173.84,9.9588438]
[1730017750781,4.24,173.87,173.85,7.0791438]
[1730017752289,4.24,173.87,173.85,9.9587438]
[1730017753083,4.24,173.87,173.84,7.0791438]
[1730017753879,4.24,173.87,173.84,9.9588438]
[1730017762495,4.24,173.87,173.84,2.8797]
[1730017768194,4.24,173.87,173.85,7.0791438]
[1730017768397,4.24,173.87,173.85,9.9587438]
[1730017769405,4.24,173.87,173.85,7.0791438]
[1730017771394,4.2,173.89,173.86,7.0791438]
[1730017772197,4.2,173.89,173.86,9.9584438]
[1730017773513,7.0788,173.9,173.86,9.9584438]
[1730017773705,7.0788,173.9,173.88,7.0791438]
[1730017774205,4.2,173.9,173.88,9.9582438]
[1730017775507,4.2,173.91,173.89,7.0791438]
[1730017777411,4.2,173.93,173.9,2.8787]
[1730017779612,2.8781,173.95,173.91,9.9576438]
[1730017779919,4.2,173.94,173.91,9.9576438]
[1730017783122,2.8781,173.95,173.91,9.9576438]
[1730017783323,7.0781,173.95,173.91,9.9576438]
[1730017785828,4.2,173.95,173.93,7.0791438]
[1730017786930,4.2,173.95,173.93,9.9573438]
[1730017787328,4.18,173.96,173.94,9.9572438]
[1730017787527,4.18,173.96,173.95,7.0791438]
[1730017789222,59.6351,174.02,173.95,7.0791438]
[1730017789433,2.8771,174.0,173.95,9.9570438]
[1730017789926,4.18,173.99,173.95,7.0791438]
[1730017790133,4.18,173.99,173.97,7.0791438]
[1730017791941,2.8771,174.0,173.97,7.0791438]
[1730017792132,7.0571,174.0,173.97,7.0791438]
[1730017795229,2.8771,174.0,173.97,7.0791438]
[1730017795436,4.18,173.99,173.97,7.0791438]
[1730017797536,4.18,173.99,173.89,3.692]
[1730017797733,4.18,173.99,173.95,7.0791438]
[1730017798430,2.8775,173.98,173.95,7.0791438]
[1730017798637,4.18,173.99,173.95,7.0791438]
[1730017798937,7.0574,173.99,173.95,7.0791438]
[1730017800233,4.18,173.99,173.95,7.0791438]
[1730017800434,7.0791438,173.96,173.9,9.9577438]
[1730017800634,4.18,173.95,173.9,9.9577438]
[1730017800941,4.18,173.95,173.9,7.0791438]
[1730017801145,7.058,173.95,173.91,2.8786]
[1730017801642,7.058,173.95,173.92,7.0791438]
[1730017802237,4.18,173.95,173.92,7.0791438]
[1730017802440,7.0791438,173.93,173.86,7.0791438]
[1730017803335,2.8786,173.91,173.86,9.9584438]
[1730017803537,4.18,173.9,173.86,9.9584438]
[1730017803732,4.18,173.9,173.81,2.4235]
[1730017803939,4.18,173.9,173.85,7.0791438]
[1730017804135,4.18,173.9,173.81,2.4235]
[1730017804136,11.2591438,173.9,173.81,2.4235]
[1730017804341,4.18,173.9,173.8,1.1902]
[1730017804534,7.0791438,173.87,173.76,4.18]
[1730017804736,2.8797,173.85,173.81,7.0791438]
[1730017804935,4.18,173.86,173.81,7.0791438]
[1730017805542,7.0594,173.86,173.82,7.0791438]
[1730017805841,4.18,173.86,173.85,7.0791438]
[1730017807348,4.18,173.86,173.84,7.0791438]
[1730017807649,4.18,173.86,173.82,7.0791438]
[1730017808339,4.18,173.86,173.85,7.0791438]
[1730017808537,4.18,173.89,173.85,7.0791438]
[1730017808745,4.18,173.89,173.79,4.18]
[1730017808746,4.18,173.89,173.88,7.0791438]
[1730017810147,4.18,173.89,173.88,9.9582438]
[1730017811338,4.18,173.89,173.88,2.8791]
[1730017811545,2.8782,173.94,173.88,9.9582438]
[1730017811745,4.18,173.93,173.88,9.9582438]
[1730017813043,4.18,173.93,173.88,2.8791]
[1730017813245,2.8784,173.92,173.89,7.0791438]
[1730017813951,2.8791,173.88,173.84,2.8796]
[1730017814148,4.18,173.89,173.86,7.0791438]
[1730017814947,7.059,173.89,173.86,7.0791438]
[1730017815651,4.18,173.89,173.87,7.0791438]
[1730017817250,4.18,173.89,173.86,7.0791438]
[1730017817447,7.059,173.89,173.85,2.8796]
[1730017817650,7.059,173.89,173.85,9.9587438]
[1730017817848,7.059,173.89,173.85,7.0791438]
[1730017818848,7.059,173.89,173.85,9.9586438]
[1730017822545,4.18,173.89,173.84,7.0791438]
[1730017823656,11.2591438,173.89,173.84,7.0791438]
[1730017824054,4.18,173.89,173.84,7.0791438]
[1730017824253,2.8791,173.88,173.84,9.9588438]
[1730017825859,4.18,173.89,173.84,7.0791438]
[1730017826157,4.18,173.89,173.85,7.0791438]
[1730017827164,4.18,173.89,173.87,7.0791438]
[1730017831262,4.18,173.9,173.88,9.9582438]
[1730017831556,4.18,173.9,173.88,7.0791438]
[1730017833364,4.18,173.9,173.88,9.9582438]
[1730017837362,2.878,173.95,173.88,7.0791438]
[1730017837665,2.878,173.95,173.82,4.18]
[1730017837666,4.18,173.94,173.91,7.0791438]
[1730017838068,7.0582,173.94,173.91,7.0791438]
[1730017838364,2.8782,173.94,173.91,7.0791438]
[1730017838560,4.18,173.93,173.91,7.0791438]
[1730017838756,4.18,173.93,173.91,9.9577438]
[1730017840571,4.18,173.94,173.91,9.9577438]
[1730017841764,2.8777,173.97,173.93,9.9573438]
[1730017841966,4.18,173.96,173.93,9.9573438]
[1730017842578,4.18,173.97,173.94,7.0791438]
[1730017843072,2.8778,173.96,173.94,7.0791438]
[1730017843771,4.18,173.97,173.95,7.0791438]
[1730017845666,4.18,173.98,173.95,9.9570438]
[1730017845975,4.18,173.98,173.97,7.0791438]
[1730017847874,2.878,173.95,173.87,3.6505]
[1730017848077,2.878,173.95,173.92,7.0791438]
[1730017848278,4.18,173.94,173.92,7.0791438]
[1730017848464,4.18,173.96,173.94,7.0791438]
[1730017848671,4.18,173.97,173.95,7.0791438]
[1730017849171,4.18,173.97,173.96,2.8778]
[1730017851878,4.18,173.99,173.96,2.8778]
[1730017852080,4.18,173.99,173.98,7.0791438]
[1730017852786,73.21,174.11,173.98,7.0791438]
[1730017852982,2.8766,174.04,174.02,7.0791438]
[1730017853179,7.0566,174.04,174.02,7.0791438]
[1730017853891,2.8766,174.04,174.02,7.0791438]
[1730017854080,4.18,174.06,174.03,7.0791438]
[1730017854285,4.18,174.06,174.05,7.0791438]
[1730017857989,2.876,174.07,174.05,7.0791438]
[1730017858189,7.056,174.07,174.05,7.0791438]
[1730017858496,4.18,174.07,174.05,7.0791438]
[1730017858697,55.92,174.11,174.07,2.8758]
[1730017858895,4.18,174.08,173.97,4.18]
[1730017859199,4.18,174.08,174.04,2.8764]
[1730017859402,55.92,174.11,174.07,7.0791438]
[1730017859695,4.18,174.1,174.07,7.0791438]
[1730017859892,4.18,174.1,174.05,7.0791438]
[1730017860088,7.0791438,174.09,174.04,7.0791438]
[1730017861096,4.18,174.1,174.05,7.0791438]
[1730017861498,4.18,174.1,174.07,7.0791438]
[1730017861696,55.92,174.11,174.07,7.0791438]
[1730017861894,4.18,174.1,174.07,7.0791438]
[1730017862196,2.8758,174.09,174.07,7.0791438]
[1730017862591,2.8758,174.08,174.07,7.0791438]
[1730017863398,7.0558,174.08,174.07,7.0791438]
[1730017865302,2.8758,174.08,174.07,7.0791438]
[1730017866907,2.8756,174.1,174.07,7.0791438]
[1730017867113,7.0556,174.1,174.08,7.0791438]
[1730017867602,4.18,174.1,174.08,7.0791438]
[1730017868406,2.8753,174.11,174.08,7.0791438]
[1730017868606,4.18,174.1,174.06,2.8761]
[1730017870511,4.18,174.1,174.07,2.8758]
[1730017870711,4.18,174.1,174.09,7.0791438]
[1730017871615,2.8756,174.09,174.04,2.8763]
[1730017871813,4.18,174.1,174.05,7.0791438]
[1730017872009,11.2591438,174.1,174.05,7.0791438]
[1730017872715,11.2591438,174.1,174.02,3.7227]
[1730017873009,7.0791438,174.08,173.97,3.6741]
[1730017873207,7.0791438,174.08,174.02,7.0791438]
[1730017873606,11.2591438,174.1,174.03,7.0791438]
[1730017875520,2.8762,174.06,174.03,7.0791438]
[1730017875711,7.0562,174.06,174.03,7.0791438]
[1730017876110,2.8769,174.02,173.97,6.5517]
[1730017876312,2.8769,174.02,173.99,7.0791438]
[1730017876718,2.8767,174.03,174.01,7.0791438]
[1730017882211,2.8772,174.0,173.98,7.0791438]
[1730017883925,2.8772,174.0,173.99,7.0791438]
[1730017886124,4.18,174.03,173.99,9.9563438]
[1730017886332,4.18,174.03,174.02,7.0791438]
[1730017887227,7.0567,174.03,174.02,7.0791438]
[1730017889028,4.18,174.03,174.02,7.0791438]
[1730017890731,4.18,174.03,174.02,7.04650108]
[1730017892137,1.2511,174.08,174.02,7.04650108]
[1730017892336,2.8763,174.05,174.03,7.0791438]
[1730017894237,4.18,174.07,174.03,7.0791438]
[1730017894443,3.5583,174.13,174.06,7.0791438]
[1730017894638,4.18,174.12,174.07,7.0791438]
[1730017895535,2.8758,174.08,174.07,7.0791438]
[1730017895742,7.0558,174.08,174.07,7.0791438]
[1730017898338,3.5583,174.13,174.07,7.0791438]
[1730017898542,2.8757,174.09,174.07,7.0791438]
[1730017898744,4.18,174.08,174.07,7.0791438]
[1730017899439,10.6374438,174.13,174.07,7.0791438]
[1730017899637,4.18,174.12,174.07,7.0791438]
[1730017899840,7.0791438,174.08,174.01,2.8768]
[1730017900037,4.18,174.07,174.02,7.0791438]
[1730017900834,2.8761,174.06,174.04,7.0791438]
[1730017903847,2.82036041,174.06,174.04,7.0791438]
[1730017908265,4.18,174.07,174.05,7.0791438]
[1730017908848,4.18,174.08,174.05,9.9553438]
[1730017909043,4.18,174.08,174.05,7.0791438]
[1730017911861,7.0558,174.08,174.05,7.0791438]
[1730017914056,7.0558,174.08,174.07,7.0791438]
[1730017914955,2.8758,174.08,174.07,7.0791438]
[1730017915152,2.8743,174.17,174.12,2.875]
[1730017915457,2.8743,174.17,174.16,7.0791438]
[1730017917158,4.18,174.2,174.16,7.0791438]
[1730017917464,4.18,174.2,174.19,7.0791438]
[1730017918347,4.18,174.2,174.08,3.7788]
[1730017918549,4.18,174.2,174.16,7.0791438]
[1730017919265,2.8743,174.18,174.16,7.0791438]
[1730017920261,4.18,174.2,174.16,7.0791438]
[1730017920462,2.8743,174.17,174.16,7.0791438]
[1730017921562,7.0538,174.2,174.16,7.0791438]
[1730017921864,7.0538,174.2,174.19,7.0791438]
[1730017923159,2.8744,174.17,174.11,2.8752]
[1730017923360,4.18,174.16,174.15,7.0791438]
[1730017923559,4.18,174.17,174.15,7.0791438]
[1730017923760,4.18,174.17,174.08,3.7788]
[1730017923761,4.18,174.17,174.16,7.0791438]
[1730017926469,4.18,174.17,174.08,3.7788]
[1730017926663,2.8747,174.15,174.13,7.0791438]
[1730017927768,2.8745,174.16,174.13,7.0791438]
[1730017929365,2.8745,174.16,174.15,7.0791438]
[1730017930773,7.0543,174.17,174.15,7.0791438]
[1730017930974,4.18,174.17,174.16,7.0791438]
[1730017932171,4.18,174.17,174.09,4.18]
[1730017932675,4.18,174.17,174.16,7.0791438]
[1730017934175,4.18,174.17,174.08,3.7788]
[1730017934369,4.18,174.17,174.12,7.0791438]
[1730017934370,11.2591438,174.17,174.12,7.0791438]
[1730017934570,4.18,174.17,174.12,7.0791438]
[1730017935674,2.8747,174.15,174.12,7.0791438]
[1730017937176,2.8747,174.15,174.1,2.8754]
[1730017937375,2.8747,174.15,174.13,7.0791438]
[1730017938771,2.8745,174.16,174.13,7.0791438]
[1730017938975,4.18,174.17,174.14,7.0791438]
[1730017939277,4.18,174.17,174.15,7.0791438]
[1730017941872,4.18,174.16,174.15,7.0791438]
[1730017944474,2.8741,174.19,174.15,7.0791438]
[1730017944681,4.18,174.18,174.17,7.0791438]
[1730017945972,4.18,174.19,174.17,7.0791438]
[1730017946375,4.18,174.2,174.17,7.0791438]
[1730017946579,4.18,174.2,174.19,7.0791438]
[1730017947683,2.8737,174.21,174.19,7.0791438]
[1730017947882,4.18,174.2,174.19,7.0791438]
[1730017948479,4.18,174.2,174.16,2.8744]
[1730017948676,7.0539,174.2,174.17,7.0791438]
[1730017949275,4.18,174.2,174.17,7.0791438]
[1730017949475,2.8742,174.18,174.16,7.0791438]
[1730017950073,2.874,174.19,174.16,7.0791438]
[1730017950884,4.18,174.2,174.16,7.0791438]
[1730017951680,7.0791438,174.18,174.08,3.7788]
[1730017951881,7.0791438,174.16,174.11,7.0791438]
[1730017952075,2.8751,174.13,174.11,7.0791438]
[1730017952473,4.18,174.15,174.11,7.0791438]
[1730017952684,2.8751,174.13,174.11,7.0791438]
[1730017953386,2.875,174.13,174.11,7.0791438]
[1730017957489,7.055,174.13,174.11,7.0791438]
[1730017960995,11.2591438,174.13,173.9,8.636]
[1730017961195,7.0791438,174.11,174.05,7.0791438]
[1730017961399,4.18,174.13,174.07,7.0791438]
[1730017961794,2.8753,174.11,174.07,7.0791438]
[1730017963002,7.0552,174.12,174.09,7.0791438]
[1730017964597,7.0791438,174.16,174.09,7.0791438]
[1730017964598,4.18,174.11,174.1,7.0791438]
[1730017964806,4.18,174.12,174.1,7.0791438]
[1730017967497,2.875,174.13,174.1,7.0791438]
[1730017967702,4.18,174.13,174.12,7.0791438]
[1730017968709,17.29,174.31,174.12,7.0791438]
[1730017968898,7.0791438,174.22,174.17,7.0791438]
[1730017969099,11.2591438,174.21,174.15,7.0791438]
[1730017970906,11.2591438,174.21,174.12,2.8751]
[1730017971109,11.2591438,174.21,174.14,7.0791438]
[1730017971611,2.8743,174.18,174.14,7.0791438]
[1730017971808,4.18,174.17,174.16,7.0791438]
[1730017973311,7.0543,174.17,174.12,2.8751]
[1730017973505,11.2591438,174.17,174.1,7.0791438]
[1730017973910,2.8749,174.14,174.1,7.0791438]
[1730017974710,4.18,174.17,174.11,7.0791438]
[1730017975022,4.18,174.17,174.13,7.0791438]
[1730017975223,4.18,174.17,174.15,7.0791438]
[1730017977921,4.18,174.18,174.16,7.0791438]
[1730017979313,4.18,174.18,174.17,2.8743]
[1730017979514,4.18,174.18,174.16,7.0791438]
[1730017980613,4.18,174.18,174.15,7.0791438]
[1730017981819,7.0543,174.18,174.15,7.0791438]
[1730017982025,4.18,174.18,174.17,7.0791438]
[1730017983222,17.29,174.3,174.17,7.0791438]
[1730017983421,11.2591438,174.28,174.21,7.0791438]
[1730017983621,7.0791438,174.25,174.13,1.43751891]
[1730017983827,4.18,174.28,174.14,1.43751891]
[1730017983828,7.0791438,174.23,174.14,1.43751891]
[1730017984127,2.8737,174.21,174.17,7.0791438]
[1730017984628,2.8737,174.21,174.18,7.0791438]
[1730017985018,2.8739,174.2,174.17,7.0791438]
[1730017985626,7.0791438,174.21,174.12,3.673]
[1730017985919,7.0791438,174.21,174.15,7.0791438]
[1730017986125,2.8741,174.19,174.15,7.0791438]
[1730017986324,4.18,174.18,174.16,7.0791438]
[1730017986825,7.0542,174.18,174.16,7.0791438]
[1730017987426,4.18,174.18,174.16,7.0791438]
[1730017990519,7.0543,174.18,174.12,3.673]
[1730017990724,7.0543,174.18,174.16,7.0791438]
[1730017991127,10.6445438,174.22,174.16,7.0791438]
[1730017991331,4.18,174.21,174.13,2.8748]
[1730017991629,4.18,174.21,174.17,7.0791438]
[1730017991934,2.8739,174.2,174.17,7.0791438]
[1730017992228,4.18,174.21,174.14,2.8747]
[1730017992531,4.18,174.21,174.16,7.0791438]
[1730017992835,2.8738,174.21,174.16,7.0791438]
[1730017993025,4.18,174.2,174.16,7.0791438]
[1730017993630,2.8728,174.27,174.21,2.8736]
[1730017993928,4.18,174.27,174.24,7.0791438]
[1730017994630,4.18,174.27,174.22,7.0791438]
[1730017994927,7.0791438,174.26,174.21,7.0791438]
[1730017995231,2.8733,174.24,174.17,2.8742]
[1730017995434,4.18,174.23,174.2,7.0791438]
[1730017995631,4.18,174.23,174.22,7.0791438]
[1730017995829,4.18,174.23,174.22,9.9526438]
[1730017996332,4.18,174.23,174.22,7.0791438]
[1730017999738,4.2,174.24,174.22,7.0791438]
[1730017999934,4.2,174.24,174.23,7.0791438]
[1730018001632,1.2825,174.31,174.23,7.0791438]
[1730018001831,2.8726,174.28,174.26,7.0791438]
[1730018003031,2.873,174.26,174.2,2.8737]
[1730018003232,2.873,174.26,174.23,7.0791438]
[1730018003440,4.2,174.25,174.23,7.0791438]
[1730018004330,11.2791438,174.25,174.1,5.0118877]
[1730018004535,7.0791438,174.23,174.17,7.0791438]
[1730018004738,4.2,174.22,174.2,7.0791438]
[1730018005935,4.2,174.23,174.2,7.0791438]
[1730018006139,4.2,174.24,174.23,7.0791438]
[1730018006435,4.2,174.25,174.23,7.0791438]
[1730018007035,2.8737,174.21,174.16,3.7292]
[1730018007243,7.0737,174.21,174.18,7.0791438]
[1730018008238,4.2,174.21,174.18,7.0791438]
[1730018010038,1.1845,174.29,174.2,7.0791438]
[1730018010235,4.2,174.28,174.21,13.90898337]
[1730018010938,2.8729,174.26,174.21,13.90898337]
[1730018011145,4.2,174.28,174.22,2.8734]
[1730018012237,2.8727,174.27,174.22,2.8734]
[1730018012640,4.2,174.28,174.19,13.90918337]
[1730018012845,4.2,174.28,174.19,11.03538337]
[1730018013042,2.8731,174.25,174.19,11.03538337]
[1730018013238,4.2,174.24,174.19,11.03538337]
[1730018013439,7.0733,174.24,174.19,11.03538337]
[1730018014042,2.8734,174.23,174.19,11.03538337]
[1730018014441,2.8734,174.23,174.16,2.8743]
[1730018014647,2.8734,174.23,174.18,11.03538337]
[1730018016250,2.8734,174.23,174.18,13.90948337]
[1730018017949,4.2,174.24,174.19,2.8739]
[1730018017950,7.0732,174.24,174.19,2.8739]
[1730018020352,4.2,174.23,174.2,11.03538337]
[1730018023450,4.2,174.23,174.2,13.90908337]
[1730018024970,2.873,174.26,174.22,2.8735]
[1730018025159,4.2,174.25,174.22,2.8735]
[1730018027450,2.873,174.26,174.22,2.8735]
[1730018027755,7.073,174.26,174.22,2.8735]
[1730018029856,4.2,174.26,174.2,11.03538337]
[1730018030249,4.2,174.26,174.21,7.0647709]
[1730018030454,2.8733,174.24,174.21,7.0647709]
[1730018033056,4.2,174.26,174.21,7.0647709]
[1730018033254,2.8731,174.25,174.21,7.0647709]
[1730018035156,2.8731,174.25,174.12,4.24]
[1730018035157,7.0647709,174.25,174.12,4.24]
[1730018035356,7.0647709,174.25,174.11,3.7292]
[1730018035357,7.0647709,174.25,174.19,7.0647709]
[1730018036265,2.8734,174.23,174.19,7.0647709]
[1730018036466,4.24,174.22,174.19,7.0647709]
[1730018037767,4.24,174.22,174.2,7.0647709]
[1730018040972,4.24,174.22,174.2,9.9385709]
[1730018041168,4.24,174.22,174.2,7.0647709]
[1730018041573,4.24,174.22,174.12,4.24]
[1730018041879,4.24,174.22,174.19,7.0647709]
[1730018042060,4.24,174.22,174.21,7.0647709]
[1730018050368,4.24,174.22,174.21,9.9383709]
[1730018052266,4.24,174.22,174.21,7.0647709]
[1730018053067,2.8732,174.24,174.21,7.0647709]
[1730018053271,7.1132,174.24,174.21,7.0647709]
[1730018053472,7.1132,174.24,174.2,2.8738]
[1730018053674,7.1132,174.24,174.21,7.0647709]
[1730018054977,2.8735,174.23,174.2,7.0647709]
[1730018055176,2.8735,174.23,174.19,2.8739]
[1730018055375,2.8735,174.23,174.19,9.9386709]
[1730018059077,4.24,174.24,174.19,7.0647709]
[1730018059386,2.8736,174.22,174.19,7.0647709]
[1730018060882,7.1133,174.24,174.19,9.9386709]
[1730018061084,7.1133,174.24,174.19,7.0647709]
[1730018061286,7.1133,174.24,174.21,7.0647709]
[1730018065400,7.1133,174.24,174.19,9.9386709]
[1730018068700,7.1133,174.24,174.19,7.0647709]
[1730018068999,2.8734,174.23,174.19,7.0647709]
[1730018073807,2.8734,174.23,174.19,9.9386709]
[1730018075906,7.1132,174.24,174.2,2.8737]
[1730018076105,7.1132,174.24,174.21,7.0647709]
[1730018076304,4.24,174.24,174.21,7.0647709]